bitfinex/quotes_ETHUSD_20240607
["timestamp","ask_amount","ask_price","bid_price","bid_amount"]
[1717755634654,0.75,3810.9,3810.8,1.82424762]
[1717755634813,0.75,3810.9,3810.8,1.88603592]
[1717755638478,0.75,3810.9,3810.8,2.98782877]
[1717755638654,0.75,3810.9,3810.8,1.88603592]
[1717755639257,0.75,3810.9,3810.8,1.8725809]
[1717755640044,0.75,3810.9,3810.8,2.97437375]
[1717755640458,0.75,3810.9,3810.8,1.8725809]
[1717755643354,0.75,3810.9,3810.8,2.69804668]
[1717755644191,0.75,3810.9,3810.8,2.68459167]
[1717755649199,0.75,3810.9,3810.8,2.67113665]
[1717755654435,0.75,3810.9,3810.8,1.84567087]
[1717755658447,0.75,3810.9,3810.8,2.94746372]
[1717755659142,2.62393,3811.1,3810.8,2.94746372]
[1717755659527,2.62393,3811.1,3810.9,2.88567542]
[1717755659748,2.62393,3811.1,3811.0,1.78388257]
[1717755659914,2.62393,3811.1,3811.0,1.84523386]
[1717755660252,2.62393,3811.1,3811.0,2.67144801]
[1717755660435,0.75,3811.2,3811.0,1.84523386]
[1717755660640,0.75,3811.2,3811.1,2.61017221]
[1717755660641,1.535,3811.2,3811.1,2.61017221]
[1717755661019,1.535,3811.2,3811.1,2.6715683]
[1717755661341,0.785,3811.3,3811.1,2.6715683]
[1717755661538,0.785,3811.3,3811.2,1.82423623]
[1717755661721,0.785,3811.3,3811.2,1.88562745]
[1717755661919,0.785,3811.3,3811.2,2.9874203]
[1717755662117,0.785,3811.3,3811.2,1.88562745]
[1717755662953,3.0446,3811.6,3811.2,2.9874203]
[1717755663151,0.75,3811.9,3811.4,0.82626226]
[1717755663152,0.75,3811.8,3811.4,0.82626226]
[1717755663356,0.75,3811.8,3811.5,2.71187508]
[1717755663519,0.785,3811.8,3811.7,0.82626226]
[1717755663720,4.12334,3812.0,3811.7,2.6501403]
[1717755664020,3.37334,3812.0,3811.8,2.64987692]
[1717755664219,4.90834,3812.0,3811.8,0.88736085]
[1717755664454,2.285,3812.0,3811.8,0.88736085]
[1717755664632,1.5,3812.0,3811.9,2.64977629]
[1717755664967,0.785,3812.0,3811.9,2.7107595]
[1717755665817,1.535,3812.0,3811.9,2.7107595]
[1717755667369,0.75,3812.0,3811.9,0.06098321]
[1717755669373,0.75,3812.0,3811.9,0.61074824]
[1717755670971,0.75,3812.0,3811.9,0.60985805]
[1717755672376,0.75,3812.0,3811.9,0.06009302]
[1717755678580,0.75,3812.0,3811.9,0.06010088]
[1717755678780,0.75,3812.0,3811.7,0.54976503]
[1717755678938,0.75,3812.0,3811.8,0.06010576]
[1717755691383,1.535,3812.0,3811.8,0.06010576]
[1717755694397,5.11426,3811.9,3811.8,0.06010576]
[1717755694598,5.89926,3811.9,3811.8,0.06010576]
[1717755694813,5.11426,3811.9,3811.8,0.06010576]
[1717755695270,5.11426,3811.9,3811.7,0.54976503]
[1717755695470,0.75,3811.8,3811.7,0.54976503]
[1717755695657,0.75,3811.8,3811.6,0.54976503]
[1717755696079,0.75,3811.8,3811.7,0.54976503]
[1717755696652,0.75,3811.8,3811.6,0.54976503]
[1717755697099,0.75,3811.8,3811.7,0.54976503]
[1717755700296,0.75,3811.8,3811.6,0.82599888]
[1717755700803,0.75,3811.8,3811.7,0.05981484]
[1717755702263,0.75,3811.8,3811.7,2.70963136]
[1717755704276,0.75,3811.8,3811.7,1.88363248]
[1717755705304,0.75,3811.8,3811.7,2.98542533]
[1717755706378,2.121426,3811.8,3811.7,2.98542533]
[1717755706581,2.121426,3811.8,3811.7,2.70962623]
[1717755706762,2.871426,3811.8,3811.7,0.61054941]
[1717755707712,2.121426,3811.8,3811.7,0.61054941]
[1717755707915,2.121426,3811.8,3811.7,0.05981484]
[1717755710819,2.121426,3811.8,3811.7,0.61070296]
[1717755711059,2.121426,3811.8,3811.7,0.05981484]
[1717755711275,2.121426,3811.8,3811.7,0.61070302]
[1717755721691,2.871426,3811.8,3811.7,0.61070302]
[1717755721990,2.285,3811.8,3811.7,0.61070302]
[1717755724964,2.285,3811.8,3811.7,0.05981484]
[1717755725153,3.035,3811.8,3811.7,0.05981484]
[1717755725351,0.75,3811.5,3811.4,0.55088818]
[1717755725592,0.75,3811.5,3811.4,0.60796786]
[1717755725788,0.75,3811.5,3811.4,0.05707968]
[1717755730691,1.535,3811.5,3811.4,0.05707968]
[1717755732888,4.15863,3811.5,3811.4,0.05707968]
[1717755735330,3.3735,3811.7,3811.4,0.05707968]
[1717755735490,3.3735,3811.7,3811.5,0.5505443]
[1717755735813,3.3735,3811.7,3811.6,1.88106399]
[1717755736190,3.3735,3811.7,3811.6,2.70677899]
[1717755739192,3.3735,3811.7,3811.6,0.05716147]
[1717755739388,4.10861,3811.7,3811.5,0.825715]
[1717755739707,0.785,3811.6,3811.5,0.825715]
[1717755739909,0.785,3811.6,3811.5,2.64970894]
[1717755740975,0.785,3811.6,3811.4,0.825715]
[1717755741175,0.785,3811.6,3811.5,2.64971677]
[1717755741719,0.785,3811.6,3811.4,0.825715]
[1717755742431,3.37363,3811.5,3811.4,0.825715]
[1717755742638,3.37363,3811.5,3811.4,2.64975484]
[1717755743433,3.864493,3811.5,3811.3,0.825715]
[1717755743744,0.785,3811.4,3811.3,0.825715]
[1717755744047,0.785,3811.4,3811.3,2.64981794]
[1717755744181,0.785,3811.4,3811.2,0.825715]
[1717755744182,3.37377,3811.3,3811.2,0.825715]
[1717755744378,4.15877,3811.3,3811.2,2.64983894]
[1717755744618,4.15877,3811.3,3811.1,0.825715]
[1717755744820,3.37377,3811.3,3811.2,0.55078734]
[1717755744985,4.15877,3811.3,3811.2,0.55078734]
[1717755745185,4.15877,3811.3,3811.2,0.55075849]
[1717755745387,4.15877,3811.3,3811.1,0.825715]
[1717755745885,4.15877,3811.3,3811.2,0.05714436]
[1717755746312,4.15877,3811.3,3811.2,0.60788446]
[1717755746694,5.02204373,3811.3,3811.2,0.60788446]
[1717755746904,9.14581373,3811.3,3811.2,0.60788446]
[1717755747103,11.60851373,3811.3,3811.2,0.05714436]
[1717755747615,2.62398,3811.0,3810.9,0.5507401]
[1717755747815,2.62398,3811.0,3810.9,0.60789908]
[1717755748419,4.12398,3811.0,3810.9,0.60789908]
[1717755749613,4.12398,3811.0,3810.9,0.05715898]
[1717755749815,4.12398,3811.0,3810.9,0.60789908]
[1717755750201,4.12398,3811.0,3810.9,0.05715898]
[1717755751614,6.56048,3811.0,3810.9,0.05715898]
[1717755752326,7.31048,3811.0,3810.9,0.05715898]
[1717755755435,7.31048,3811.0,3810.8,0.5507401]
[1717755755593,0.785,3810.9,3810.8,0.5507401]
[1717755755798,6.56048,3811.0,3810.8,0.5507401]
[1717755756011,0.785,3810.9,3810.8,0.5507401]
[1717755756510,0.785,3810.9,3810.7,0.5507401]
[1717755756511,2.62412,3810.8,3810.7,0.5507401]
[1717755756743,3.40912,3810.8,3810.7,0.5507401]
[1717755757645,3.40912,3810.8,3810.6,0.825715]
[1717755758012,3.40912,3810.8,3810.7,0.5502431]
[1717755760950,3.40912,3810.8,3810.7,0.60772042]
[1717755763341,0.75,3811.0,3810.7,0.60772042]
[1717755763655,0.75,3811.2,3810.8,2.64993614]
[1717755763656,1.535,3811.2,3810.8,2.64993614]
[1717755763899,1.535,3811.2,3811.0,0.55006778]
[1717755764057,1.535,3811.2,3811.1,0.55006778]
[1717755764261,1.535,3811.2,3811.1,0.60749683]
[1717755765661,0.75,3811.2,3811.1,3.04299683]
[1717755766483,0.75,3811.2,3811.1,0.60749683]
[1717755767303,0.75,3811.2,3811.1,0.05742905]
[1717755770600,0.75,3811.2,3811.1,0.60761106]
[1717755771706,0.75,3811.2,3811.1,2.70728083]
[1717755772576,0.75,3811.2,3811.1,0.05742905]
[1717755773588,0.75,3811.2,3811.1,2.7072159]
[1717755773814,0.75,3811.2,3811.1,0.05742905]
[1717755775717,0.75,3811.2,3811.1,0.60764917]
[1717755777217,0.75,3811.2,3811.1,0.60765501]
[1717755778205,0.75,3811.2,3811.1,0.05742905]
[1717755778409,2.233067,3811.2,3811.1,0.05742905]
[1717755778798,0.75,3811.0,3810.9,0.55022596]
[1717755779010,1.535,3811.0,3810.9,0.55022596]
[1717755780592,1.535,3811.0,3810.8,0.825715]
[1717755781188,1.535,3811.0,3810.9,0.55027787]
[1717755782427,1.535,3811.0,3810.8,0.825715]
[1717755784233,1.535,3811.0,3810.9,0.55043411]
[1717755784415,1.535,3811.0,3810.8,0.825715]
[1717755786506,1.535,3811.0,3810.9,2.64993467]
[1717755787327,1.535,3811.0,3810.9,1.82421967]
[1717755787822,1.535,3811.0,3810.9,2.65016921]
[1717755790492,1.535,3811.0,3810.9,1.82421967]
[1717755790926,1.535,3811.0,3810.9,1.87982938]
[1717755791094,1.535,3811.0,3810.9,2.70596997]
[1717755793222,1.535,3811.0,3810.9,1.87982938]
[1717755794127,1.535,3811.0,3810.9,2.70599919]
[1717755794332,1.535,3811.0,3810.9,1.87982938]
[1717755794808,1.535,3811.0,3810.9,2.70600753]
[1717755795214,1.535,3811.0,3810.9,1.87982938]
[1717755795616,1.535,3811.0,3810.9,2.70602525]
[1717755797539,1.535,3811.0,3810.9,1.87982938]
[1717755798226,1.535,3811.0,3810.9,2.70604654]
[1717755800736,0.75,3811.0,3810.9,2.70604654]
[1717755800915,1.535,3811.0,3810.9,1.87982938]
[1717755801322,1.535,3811.0,3810.9,2.98162223]
[1717755808550,1.535,3811.0,3810.9,1.87982938]
[1717755809046,1.535,3811.0,3810.9,2.98162223]
[1717755810544,1.535,3811.0,3810.9,1.87982938]
[1717755813149,1.535,3811.0,3810.9,2.70642438]
[1717755815262,1.535,3811.0,3810.9,1.87982938]
[1717755815561,1.535,3811.0,3810.9,2.70647357]
[1717755816159,1.535,3811.0,3810.9,1.87982938]
[1717755818521,2.285,3811.0,3810.9,1.87982938]
[1717755819626,2.285,3811.0,3810.9,2.70663456]
[1717755820052,2.285,3811.0,3810.9,1.87982938]
[1717755820672,2.285,3811.0,3810.9,2.70667612]
[1717755821776,2.285,3811.0,3810.9,1.87982938]
[1717755822078,2.285,3811.0,3810.9,2.70671868]
[1717755823553,2.285,3811.0,3810.9,1.87982938]
[1717755823777,5.337031,3811.0,3810.9,1.87982938]
[1717755824076,6.087031,3811.0,3810.9,2.70676794]
[1717755824459,5.302031,3811.0,3810.9,2.70676794]
[1717755824659,5.3483,3811.0,3810.9,2.70676794]
[1717755824870,4.5983,3811.0,3810.9,2.70676794]
[1717755825180,4.5983,3811.0,3810.9,1.87982938]
[1717755827662,2.285,3811.0,3810.9,1.87982938]
[1717755827863,1.535,3811.0,3810.9,1.87982938]
[1717755828158,1.535,3811.0,3810.9,0.05560971]
[1717755828159,3.760011,3811.0,3810.9,0.05560971]
[1717755828362,2.62405,3810.9,3810.8,0.82687156]
[1717755828565,2.62405,3810.9,3810.8,1.82439377]
[1717755828873,2.62405,3810.9,3810.8,2.65123451]
[1717755829449,3.40905,3810.9,3810.8,1.82439377]
[1717755834363,0.75,3811.0,3810.8,1.82439377]
[1717755834682,0.75,3811.0,3810.9,1.82439377]
[1717755834991,0.75,3811.0,3810.9,3.20252577]
[1717755835556,0.75,3811.0,3810.9,1.82439377]
[1717755835756,0.75,3811.0,3810.9,1.87711295]
[1717755836100,0.75,3811.0,3810.9,3.25524495]
[1717755836657,0.75,3811.0,3810.9,1.87711295]
[1717755837816,0.75,3811.0,3810.9,2.9791657]
[1717755838502,0.75,3811.0,3810.9,1.87711295]
[1717755839064,0.75,3811.0,3810.9,2.97919402]
[1717755851509,3.37389,3811.2,3810.9,2.97919402]
[1717755851682,4.15889,3811.2,3811.0,2.92647484]
[1717755851887,4.15889,3811.2,3811.1,1.82439377]
[1717755852089,4.15889,3811.2,3811.1,2.97916074]
[1717755852276,1.535,3811.2,3811.1,2.97916074]
[1717755852669,1.535,3811.2,3811.1,1.87707967]
[1717755853577,1.535,3811.2,3811.1,2.97887926]
[1717755857377,0.75,3811.2,3811.1,1.87707967]
[1717755857575,1.535,3811.2,3811.1,2.97887926]
[1717755858322,1.535,3811.2,3811.1,1.87707967]
[1717755859992,1.535,3811.2,3811.1,2.70326786]
[1717755860392,3.8563,3811.2,3811.1,2.70326786]
[1717755861825,1.535,3811.2,3811.1,2.70326786]
[1717755862122,1.535,3811.2,3811.1,1.87707967]
[1717755863231,4.15884,3811.2,3811.1,1.87707967]
[1717755866231,4.15884,3811.2,3811.1,2.70318748]
[1717755872524,4.15884,3811.2,3811.1,1.87707967]
[1717755873042,4.15884,3811.2,3811.1,2.70331688]
[1717755873562,4.15884,3811.2,3811.1,1.87707967]
[1717755875077,3.37384,3811.2,3811.1,1.87707967]
[1717755875367,4.15884,3811.2,3811.1,1.87707967]
[1717755876130,4.15884,3811.2,3811.1,2.97887926]
[1717755876437,4.15884,3811.2,3811.1,1.87707967]
[1717755876768,4.15884,3811.2,3811.1,2.97887926]
[1717755877135,4.15884,3811.2,3811.1,1.87707967]
[1717755877737,4.15884,3811.2,3811.1,2.97887926]
[1717755883373,4.893194,3811.2,3811.1,2.97887926]
[1717755883570,5.643194,3811.2,3811.1,2.97887926]
[1717755883774,5.643194,3811.2,3811.1,1.87707967]
[1717755887055,8.072894,3811.2,3811.1,1.87707967]
[1717755887856,8.072894,3811.2,3811.1,0.60391684]
[1717755888576,8.072894,3811.2,3811.1,0.0526859]
[1717755889474,10.696734,3811.2,3811.1,0.0526859]
[1717755889679,4.12398,3811.0,3810.9,0.55123094]
[1717755889874,7.16198,3811.0,3810.9,0.55123094]
[1717755890183,3.753,3810.8,3810.7,0.55123094]
[1717755890347,4.538,3810.8,3810.7,0.55123094]
[1717755890547,5.43966534,3810.8,3810.7,0.55123094]
[1717755891359,2.62418,3810.7,3810.6,0.55123094]
[1717755891556,3.40918,3810.7,3810.6,0.55123094]
[1717755891770,1.5,3810.6,3810.5,0.55123094]
[1717755891978,2.32071453,3810.6,3810.5,0.55123094]
[1717755892177,1.5,3810.4,3810.3,0.55123094]
[1717755892347,2.62446,3810.3,3810.2,0.55123094]
[1717755892548,2.62446,3810.3,3810.1,0.82684642]
[1717755892549,1.5,3810.2,3810.1,0.82684642]
[1717755892749,1.5,3810.2,3810.1,2.65154281]
[1717755893188,2.6246,3810.1,3810.0,0.82684642]
[1717755893361,3.4096,3810.1,3810.0,0.82684642]
[1717755893551,3.4096,3810.1,3810.0,2.65158991]
[1717755894396,3.4096,3810.1,3809.8,1.10179959]
[1717755894397,3.4096,3810.1,3809.9,0.82684642]
[1717755894553,0.785,3810.0,3809.9,0.82684642]
[1717755894986,0.785,3810.0,3809.9,2.65157253]
[1717755895965,0.785,3810.0,3809.9,2.69174942]
[1717755896559,2.6246,3810.1,3809.9,2.69174942]
[1717755896754,2.6246,3810.1,3809.9,0.86702331]
[1717755896978,0.785,3810.0,3809.9,0.86702331]
[1717755897293,0.785,3810.0,3809.9,2.69169345]
[1717755898088,1.535,3810.0,3809.9,0.04017689]
[1717755898585,3.37474,3809.9,3809.7,0.5501066]
[1717755898787,1.535,3809.8,3809.7,0.5501066]
[1717755899454,2.62487,3809.7,3809.6,0.5501066]
[1717755899655,3.40987,3809.7,3809.6,0.5501066]
[1717755900692,2.62487,3809.7,3809.6,0.5501066]
[1717755900896,3.40987,3809.7,3809.6,0.5501066]
[1717755901688,3.40987,3809.7,3809.5,0.5501066]
[1717755901866,0.785,3809.6,3809.5,0.5501066]
[1717755902871,0.785,3809.6,3809.4,0.82684642]
[1717755903301,0.785,3809.6,3809.5,0.54955011]
[1717755903684,0.785,3809.6,3809.4,0.82684642]
[1717755906003,0.785,3809.6,3809.5,0.54940743]
[1717755906380,2.62487,3809.7,3809.5,0.54940743]
[1717755906673,0.785,3809.6,3809.5,0.54940743]
[1717755907193,0.785,3809.6,3809.4,0.54940743]
[1717755908789,2.62487,3809.7,3809.4,0.54940743]
[1717755908993,3.40987,3809.7,3809.4,0.54940743]
[1717755910008,2.62487,3809.7,3809.4,0.54940743]
[1717755910316,2.62487,3809.7,3809.4,0.52340743]
[1717755910693,2.62487,3809.7,3809.3,0.82684642]
[1717755910874,2.62487,3809.7,3809.5,0.03524816]
[1717755911086,2.62487,3809.7,3809.4,0.03525304]
[1717755911281,2.62487,3809.7,3809.6,0.03524328]
[1717755911573,2.62487,3809.7,3809.5,0.03524816]
[1717755911691,2.62487,3809.7,3809.6,0.03524328]
[1717755912105,3.3747,3810.0,3809.2,3.45202642]
[1717755912330,4.1597,3810.0,3809.6,0.03524328]
[1717755912524,4.1597,3810.0,3809.3,3.13764642]
[1717755913122,0.785,3809.8,3809.4,0.035499]
[1717755916741,3.3747,3810.0,3809.4,0.035499]
[1717755916958,0.785,3809.8,3809.4,0.035499]
[1717755918075,3.40982,3809.8,3809.4,0.035499]
[1717755920253,3.40982,3809.8,3809.5,0.54923637]
[1717755920672,3.40982,3809.8,3809.6,0.0354369]
[1717755923392,3.40982,3809.8,3809.4,0.54923637]
[1717755923566,3.40982,3809.8,3809.5,0.58467815]
[1717755925391,3.40994,3809.6,3809.5,0.58467815]
[1717755928269,3.40994,3809.6,3809.5,0.03544178]
[1717755931353,3.40994,3809.6,3809.5,2.68718539]
[1717755932280,3.40994,3809.6,3809.5,1.86033897]
[1717755933296,3.40994,3809.6,3809.5,2.68606334]
[1717755933497,3.40994,3809.6,3809.5,1.86033897]
[1717755933695,3.40994,3809.6,3809.5,2.96213856]
[1717755934202,3.40994,3809.6,3809.5,1.86033897]
[1717755934372,3.40994,3809.6,3809.5,2.96213856]
[1717755935597,3.40994,3809.6,3809.5,1.86033897]
[1717755937697,3.40994,3809.6,3809.5,3.23541248]
[1717755940897,3.40994,3809.6,3809.5,1.86033897]
[1717755941088,4.144264,3809.6,3809.5,1.86033897]
[1717755942020,3.40994,3809.6,3809.5,1.86033897]
[1717755942475,2.62494,3809.6,3809.5,1.86033897]
[1717755942675,3.40994,3809.6,3809.5,3.23541248]
[1717755943715,3.40994,3809.6,3809.5,1.86033897]
[1717755945826,2.62494,3809.6,3809.5,1.86033897]
[1717755946040,2.62494,3809.6,3809.5,3.23541248]
[1717755948817,2.62494,3809.6,3809.5,1.86033897]
[1717755951132,2.62494,3809.6,3809.5,3.23541248]
[1717755951550,3.37494,3809.6,3809.5,1.86033897]
[1717755951810,4.770504,3809.6,3809.5,1.86033897]
[1717755952209,4.770504,3809.6,3809.5,2.96313452]
[1717755953218,4.770504,3809.6,3809.5,1.86033897]
[1717755956691,4.770504,3809.6,3809.5,2.6872372]
[1717755958785,7.118504,3809.6,3809.5,2.6872372]
[1717755961678,7.903504,3809.6,3809.5,2.6872372]
[1717755962077,6.47294,3809.6,3809.5,2.6872372]
[1717755962311,7.25794,3809.6,3809.5,2.6872372]
[1717755962512,6.47294,3809.6,3809.5,2.6872372]
[1717755962911,7.25794,3809.6,3809.5,2.6872372]
[1717755963379,4.90994,3809.6,3809.5,2.6872372]
[1717755963584,3.37452,3810.3,3809.5,1.86033897]
[1717755963585,0.785,3809.7,3809.5,1.86033897]
[1717755963901,0.785,3809.7,3809.6,2.65167571]
[1717755964108,0.785,3809.7,3809.6,2.68707596]
[1717755964990,0.785,3809.7,3809.6,1.86029744]
[1717755967120,0.785,3809.7,3809.6,2.96309299]
[1717755967619,0.785,3809.7,3809.6,1.86029744]
[1717755967989,2.62487,3809.7,3809.6,1.86029744]
[1717755968191,3.40987,3809.7,3809.6,1.86029744]
[1717755968391,4.15987,3809.7,3809.6,1.86029744]
[1717755969715,3.37487,3809.7,3809.6,2.96309299]
[1717755970026,3.40987,3809.7,3809.6,2.96309299]
[1717755971339,6.109757,3809.7,3809.6,2.96309299]
[1717755971526,6.109757,3809.7,3809.6,2.68720772]
[1717755972319,6.859757,3809.7,3809.6,2.68720772]
[1717755977510,7.609757,3809.7,3809.6,2.68720772]
[1717755979054,7.609757,3809.7,3809.6,0.03540025]
[1717755980134,7.609757,3809.7,3809.6,2.68732517]
[1717755980855,7.609757,3809.7,3809.6,0.86231053]
[1717755981241,7.609757,3809.7,3809.6,2.68732336]
[1717755981647,7.609757,3809.7,3809.6,0.03540025]
[1717755982061,7.609757,3809.7,3809.6,2.68732405]
[1717755984339,7.609757,3809.7,3809.6,0.03540025]
[1717755984773,7.609757,3809.7,3809.6,2.68732246]
[1717755985778,7.609757,3809.7,3809.6,0.03540025]
[1717755986080,7.609757,3809.7,3809.6,2.6873249]
[1717755986882,7.609757,3809.7,3809.6,0.03540025]
[1717755987676,7.609757,3809.7,3809.6,2.68733162]
[1717755988374,7.609757,3809.7,3809.6,0.03540025]
[1717755989683,7.609757,3809.7,3809.6,2.68734271]
[1717755992779,6.40877,3809.7,3809.6,2.68734271]
[1717755992980,7.19377,3809.7,3809.6,2.68734271]
[1717755993205,7.19377,3809.7,3809.6,1.86043243]
[1717755993677,7.19377,3809.7,3809.6,2.68754976]
[1717756009168,4.90987,3809.7,3809.6,2.68754976]
[1717756015701,4.90987,3809.7,3809.6,1.86043243]
[1717756017574,4.90987,3809.7,3809.6,2.68788576]
[1717756019333,4.90987,3809.7,3809.6,1.86043243]
[1717756019609,4.90987,3809.7,3809.6,2.68788375]
[1717756020617,4.90987,3809.7,3809.6,1.86043243]
[1717756022113,4.90987,3809.7,3809.6,2.68790279]
[1717756023689,4.12487,3809.7,3809.6,2.68790279]
[1717756023926,4.90987,3809.7,3809.6,2.68790279]
[1717756025387,4.15987,3809.7,3809.6,2.68790279]
[1717756025594,4.15987,3809.7,3809.6,1.86043243]
[1717756026188,0.75,3809.7,3809.6,2.6878878]
[1717756026391,2.62472,3810.0,3809.6,2.96322798]
[1717756026590,2.62472,3810.0,3809.8,1.37835768]
[1717756026844,2.62472,3810.0,3809.9,3.20384338]
[1717756027086,2.62472,3810.0,3809.9,3.23798879]
[1717756027293,2.62472,3810.0,3809.9,1.85917759]
[1717756027754,3.40972,3810.0,3809.9,1.85917759]
[1717756027963,2.62472,3810.0,3809.9,1.85917759]
[1717756028138,3.40972,3810.0,3809.9,1.85917759]
[1717756028677,0.75,3810.1,3809.9,1.85917759]
[1717756028821,1.535,3810.1,3810.0,2.92704479]
[1717756029151,1.535,3810.1,3810.0,5.05786273]
[1717756029152,0.75,3810.1,3810.0,5.05786273]
[1717756029458,0.75,3810.1,3810.0,3.95585012]
[1717756031346,2.62451,3810.3,3810.0,3.95585012]
[1717756031548,2.62451,3810.3,3810.2,0.55066088]
[1717756031748,3.40951,3810.3,3810.2,0.55066088]
[1717756032142,3.40951,3810.3,3810.2,0.58467652]
[1717756037249,3.40951,3810.3,3810.2,0.03401564]
[1717756044280,3.40951,3810.3,3810.2,0.0338368]
[1717756044682,3.40951,3810.3,3810.0,2.81166088]
[1717756044885,3.40951,3810.3,3810.2,0.0338368]
[1717756045483,3.40951,3810.3,3810.0,2.81166088]
[1717756045687,3.40951,3810.3,3810.2,0.0338368]
[1717756046198,3.40951,3810.3,3810.0,2.81166088]
[1717756046398,3.40951,3810.3,3810.1,0.03384168]
[1717756050095,1.990951,3810.2,3810.1,0.03384168]
[1717756050505,0.75,3810.0,3809.7,0.55066088]
[1717756050809,0.75,3810.0,3809.8,0.55066088]
[1717756050810,1.535,3810.0,3809.8,0.55066088]
[1717756053361,2.62474,3809.9,3809.8,0.55066088]
[1717756053561,2.62474,3809.9,3809.7,0.55066088]
[1717756053762,0.785,3809.8,3809.7,0.55066088]
[1717756054185,0.785,3809.8,3809.6,0.82599132]
[1717756054695,0.785,3809.8,3809.7,0.55020367]
[1717756057181,0.785,3809.8,3809.6,0.55020367]
[1717756057567,3.37487,3809.7,3809.6,0.55020367]
[1717756057900,3.37487,3809.7,3809.5,0.82599132]
[1717756057901,4.293152,3809.7,3809.5,0.82599132]
[1717756058078,3.37501,3809.5,3809.4,0.82599132]
[1717756058284,3.37501,3809.5,3809.4,2.65085221]
[1717756060805,3.37501,3809.5,3809.4,0.58441407]
[1717756061133,3.37501,3809.5,3809.4,0.03400665]
[1717756061438,3.37501,3809.5,3809.2,0.55040742]
[1717756061439,6.602797,3809.5,3809.2,0.55040742]
[1717756061761,0.785,3809.3,3809.2,0.55040742]
[1717756061948,2.62522,3809.2,3809.1,0.55040742]
[1717756063137,3.37522,3809.2,3809.1,0.55040742]
[1717756063426,4.113672,3809.2,3809.0,0.55040742]
[1717756063598,4.16022,3809.2,3809.1,0.55040742]
[1717756064021,4.16022,3809.2,3809.0,0.55040742]
[1717756068205,4.16022,3809.2,3808.9,0.55040742]
[1717756071233,0.785,3809.0,3808.9,0.55040742]
[1717756073151,1.535,3809.0,3808.9,0.55040742]
[1717756075837,1.535,3809.0,3808.9,0.58229451]
[1717756076040,1.535,3809.0,3808.9,0.03188709]
[1717756077428,1.535,3809.0,3808.7,0.55040742]
[1717756077630,1.535,3809.0,3808.9,0.03188709]
[1717756077631,0.75,3809.0,3808.9,0.03188709]
[1717756077814,1.535,3809.0,3808.8,0.58229939]
[1717756078126,1.535,3809.0,3808.9,0.03188709]
[1717756078702,1.535,3809.0,3808.7,0.55040742]
[1717756078946,1.535,3809.0,3808.9,0.03188709]
[1717756079132,1.535,3809.0,3808.8,0.03189197]
[1717756079461,1.535,3809.0,3808.7,0.55040742]
[1717756079462,1.535,3809.0,3808.9,0.03188709]
[1717756079643,1.535,3809.0,3808.7,0.55040742]
[1717756079942,1.535,3809.0,3808.9,0.03188709]
[1717756080145,1.535,3809.0,3808.8,0.03189197]
[1717756080331,1.535,3809.0,3808.9,0.03188709]
[1717756081047,1.535,3809.0,3808.7,0.55040742]
[1717756081254,4.16036,3809.0,3808.7,0.55040742]
[1717756081549,4.16036,3809.0,3808.8,0.03189197]
[1717756082040,4.16036,3809.0,3808.9,0.03188709]
[1717756082197,4.16036,3809.0,3808.7,0.55040742]
[1717756082398,4.16036,3809.0,3808.9,0.03188709]
[1717756082617,4.16036,3809.0,3808.7,0.55040742]
[1717756082815,4.16036,3809.0,3808.9,0.03188709]
[1717756083003,4.16036,3809.0,3808.7,0.55040742]
[1717756083215,4.16036,3809.0,3808.9,0.03188709]
[1717756083418,4.16036,3809.0,3808.7,0.55040742]
[1717756083645,4.16036,3809.0,3808.9,0.03188709]
[1717756083818,4.16036,3809.0,3808.7,0.55040742]
[1717756084018,4.16036,3809.0,3808.9,0.03188709]
[1717756084220,4.16036,3809.0,3808.7,0.55040742]
[1717756084458,4.16036,3809.0,3808.9,0.03188709]
[1717756084655,4.16036,3809.0,3808.8,0.58229939]
[1717756084878,0.75,3809.0,3808.9,0.03188709]
[1717756085173,1.535,3809.0,3808.9,0.03188709]
[1717756086026,4.0009,3809.0,3808.9,0.03188709]
[1717756092532,4.0009,3809.0,3808.9,0.58229451]
[1717756093065,4.0009,3809.0,3808.9,0.03188709]
[1717756093227,4.0009,3809.0,3808.9,0.58229451]
[1717756095331,0.75,3809.0,3808.9,0.58229451]
[1717756095636,0.75,3809.0,3808.9,0.03188709]
[1717756095855,0.75,3809.0,3808.9,2.68297457]
[1717756097488,3.0961,3809.0,3808.9,2.68297457]
[1717756097845,3.8811,3809.0,3808.9,0.58244257]
[1717756098644,3.8811,3809.0,3808.9,0.03188709]
[1717756099054,3.8811,3809.0,3808.9,0.58253032]
[1717756105167,3.8811,3809.0,3808.9,0.03188709]
[1717756105488,3.8811,3809.0,3808.9,0.58311519]
[1717756106395,3.8811,3809.0,3808.9,0.58323278]
[1717756108597,3.8811,3809.0,3808.9,0.03188709]
[1717756109395,3.8811,3809.0,3808.9,0.58316506]
[1717756109557,2.83596806,3809.0,3808.9,0.58316506]
[1717756110678,2.83596806,3809.0,3808.9,0.03188709]
[1717756110891,3.45709987,3809.0,3808.9,0.03188709]
[1717756112092,11.70781987,3809.0,3808.9,0.03188709]
[1717756112253,2.6257,3808.5,3808.4,0.55127797]
[1717756112458,5.7497,3808.5,3808.4,0.02997263]
[1717756112998,2.62584,3808.3,3808.2,0.55127797]
[1717756113199,2.62584,3808.3,3808.1,0.82599132]
[1717756113200,3.41084,3808.3,3808.1,0.82599132]
[1717756113360,3.41084,3808.3,3807.7,1.3778311]
[1717756113361,2.62584,3808.3,3808.2,0.58099938]
[1717756113561,3.41084,3808.3,3808.2,0.0299824]
[1717756115309,5.85624,3808.3,3808.2,0.0299824]
[1717756115467,5.85624,3808.3,3808.0,0.55101698]
[1717756115796,0.785,3808.1,3808.0,0.55101698]
[1717756117061,0.785,3808.1,3807.9,0.82599132]
[1717756117264,0.785,3808.0,3807.9,0.82599132]